Cogmind - Beta 13 @@@ ROGUE MODE // 2024.04.23 @ 03:41:28 Player: spiritcallerSnail Result: Destroyed by as-38843 with Assembled Rifle Performance ------------- Evolutions (1) 500 Regions Visited (4) 800 Robots Destroyed (32) 160 Value Destroyed (872) 872 Prototype IDs (0) 0 Alien Tech Used (0) 0 Bonus (0) 0 TOTAL SCORE: 2332 Bonus ------- None Cogmind --------- Core Integrity 0/400 Matter 300/300 Energy 98/100 System Corruption 4% Temperature Cool (75) Movement Walking (190) Ox1 Location -9/Mines Parts ------- > --- POWER (2) -------- (None) > --- PROPULSION (2) --- Improved Carbon-fiber Leg > --- UTILITY (2) ------ Large Storage Unit > --- WEAPON (3) ------- Mace > --- INVENTORY (15) --- Light Ion Engine Light Ion Engine Light Ion Engine Light Ion Engine Improved Treads Aluminum Leg Cooling System High-capacity Storage Unit Terrain Scanner Utility Shielding Heavy EM Pulse Gun Medium Laser Heavy Assault Rifle EMP Blaster Datajack Peak State ------------ > --- POWER ------------ Ion Engine Light Nuclear Core > --- PROPULSION ------- Improved Treads Aluminum Leg > --- UTILITY ---------- Large Storage Unit Hardened Light Armor Plating > --- WEAPON ----------- Particle Gun Heavy Assault Rifle EMP Blaster > --- INVENTORY -------- Improved Ion Engine Aluminum Leg Aluminum Leg Flight Unit Flight Unit Heat Sink High-capacity Storage Unit Terrain Scanner Utility Shielding Medium Laser Assault Rifle Datajack [Rating: 17] Favorites ----------- Power Light Ion Engine Engine Light Ion Engine Power Core Light Nuclear Core Propulsion Aluminum Leg Treads Improved Treads Leg Aluminum Leg Wheel Wheel Flight Unit Flight Unit Utility Large Storage Unit Device Terrain Scanner Storage Large Storage Unit Protection Hardened Light Armor Plating Weapon Light Assault Rifle Energy Gun Particle Gun Ballistic Gun Light Assault Rifle Ballistic Cannon Light Cannon Launcher Mini Grenade Launcher Impact Weapon Mace Special Melee Weapon Datajack Build | -11 -10 -10 -9 -9 ------- Run | Yrd Mat Min Mat Min Slots Evolved 2 | . . . 2 . Power 1 | . . . 1 . Propulsion . | . . . . . Utility . | . . . . . Weapon 1 | . . . 1 . Parts Attached 52 | 5 14 2 28 3 Power 11 | 1 4 1 5 . Engine 10 | 1 4 1 4 . Core 1 | . . . 1 . Reactor . | . . . . . Propulsion 20 | 2 4 . 11 3 Treads 3 | . . . 3 . Leg 13 | 2 2 . 6 3 Wheel 2 | . 2 . . . Hover . | . . . . . Flight 2 | . . . 2 . Utility 5 | . 3 . 2 . Device 2 | . 2 . . . Storage 1 | . 1 . . . Processor . | . . . . . Hackware . | . . . . . Protection 2 | . . . 2 . Artifact . | . . . . . Weapon 16 | 2 3 1 10 . Energy Gun 2 | . . . 2 . Energy Cannon . | . . . . . Ballistic Gun 8 | 2 1 1 4 . Ballistic Cannon 1 | . 1 . . . Launcher 3 | . 1 . 2 . Special Weapon . | . . . . . Impact Weapon 1 | . . . 1 . Slashing Weapon . | . . . . . Piercing Weapon . | . . . . . Special Melee Weapon 1 | . . . 1 . Unidentified Prototypes . | . . . . . Parts Lost 14 | . 3 . 5 6 Power 7 | . 2 . 3 2 Propulsion 4 | . . . 2 2 Utility . | . . . . . Weapon 3 | . 1 . . 2 Highest Loss Streak 5 | . 3 . 2 5 To Critical Strikes . | . . . . . Average Slot Usage (%) 90 | . 92 100 89 85 Engine 14 | . 13 14 12 21 Treads 2 | . . . 5 1 Leg 17 | . 18 28 14 20 Wheel 2 | . 9 . . . Device 3 | . 7 14 1 . Storage 11 | . 13 14 11 11 Protection 4 | . . . 9 . Energy Gun 2 | . . . 6 . Ballistic Gun 12 | . 17 14 11 10 Ballistic Cannon 3 | . 7 14 . . Launcher 7 | . 2 . 9 10 Impact Weapon 4 | . . . 4 11 Naked Turns . | . . . . . Heaviest Build 45 | 6 30 30 45 36 Greatest Support 43 | 20 20 20 43 28 Greatest Overweight (x) 3 | . 1 1 3 1 Average Overweight (x) . | . . 1 . . Largest Inventory Capacity 15 | 5 15 15 15 15 Average Capacity 14 | 5 14 15 15 15 Most Carried 15 | 3 10 10 15 15 Average Carried 10 | 1 7 8 12 14 Final Capacity 15 | 5 15 15 15 15 Final Carried 15 | 3 10 9 14 15 Class Distribution -------------------- 74% | Mutant 18% | Scavenger-Tank 4% | Scavenger-Mutant Dominant Class ---------------- Mutant | -10/Materials Mutant | -10/Mines Scavenger-Tank | -9/Materials Mutant | -9/Mines Resources | -11 -10 -10 -9 -9 ----------- Run | Yrd Mat Min Mat Min Matter Collected 1005 | 212 85 8 591 109 Remotely . | . . . . . Salvage Created 905 | . 107 25 646 127 Parts 54 | . 16 5 29 4 Haulers Intercepted . | . . . . . Recyclers Shooed . | . . . . . Parts Field Recycled . | . . . . . Retrieved Matter . | . . . . . Parts Self-Destructed . | . . . . . Prevented . | . . . . . Kills | -11 -10 -10 -9 -9 ------- Run | Yrd Mat Min Mat Min Combat Hostiles Destroyed 25 | . 6 3 13 3 Melee 1 | . . . . 1 Guns 11 | . 2 . 8 1 Cannons 5 | . 2 3 . . AOE 7 | . 2 . 5 . Classes Destroyed 8 | . 4 . 3 1 Builder 3 | . 1 . 2 . Recycler 2 | . . . 2 . Watcher 2 | . 1 . 1 . Swarmer 6 | . 3 3 . . Grunt 14 | . 3 . 9 2 Brawler 1 | . . . 1 . Duelist 1 | . . . . 1 Sentry 3 | . . . 3 . Best Kill Streak 5 | . 5 3 4 3 Combat Bots Only 4 | . 4 3 2 3 Max Kills in Single Turn 3 | . 3 1 3 1 Gunslinging . | . . . . . Exploded 2 | . 2 . 1 . Melee 1 | . . . . 1 Uniques/NPCs Destroyed . | . . . . . Combat | -11 -10 -10 -9 -9 -------- Run | Yrd Mat Min Mat Min Hostile Shots Fired 296 | 15 79 9 112 81 Missed 98 | 7 26 3 31 31 Damage Taken 2617 | 89 672 41 1080 735 Core 581 | 11 153 7 246 164 Absorbed by Shields . | . . . . . Core Remaining (%) 63 | 95 . 31 . . Volleys Fired 110 | 10 35 5 54 6 Largest 2 | 1 2 2 2 1 Hottest 95 | 20 55 55 95 23 Shots Fired 153 | 10 53 10 74 6 Gun 122 | 10 35 5 66 6 Cannon 21 | . 16 5 . . Launcher 10 | . 2 . 8 . Special . | . . . . . Kinetic 124 | 10 51 10 47 6 Thermal 19 | . . . 19 . Explosive 9 | . 2 . 7 . Electromagnetic 1 | . . . 1 . Robot Hit Streak 17 | 2 5 2 17 3 Robot Miss Streak 4 | 2 4 3 3 1 Penetration Max . | . . . . . Secondary Targets . | . . . . . Shots Hit Robots 94 | 5 26 5 51 7 Core Hits 47 | 2 9 3 30 3 Critical Kills . | . . . . . Critical Parts Destroyed . | . . . . . Critical Strikes 3 | . 1 1 1 . Burn 1 | . . . 1 . Blast 2 | . 1 1 . . Melee Attacks 6 | . . . 2 4 Impact 4 | . . . . 4 Slashing . | . . . . . Piercing . | . . . . . Sneak Attacks . | . . . . . Combat Hostiles . | . . . . . Follow-up Attacks . | . . . . . Damage Inflicted 2073 | 39 486 90 1268 190 Guns 826 | 39 119 14 580 74 Cannons 267 | . 191 76 . . Explosions 864 | . 176 . 688 . Melee 116 | . . . . 116 Ramming . | . . . . . Kinetic 865 | 39 310 90 352 74 Thermal 228 | . . . 228 . Explosive 816 | . 176 . 640 . Electromagnetic 48 | . . . 48 . Impact 116 | . . . . 116 Slashing . | . . . . . Piercing . | . . . . . Highest Corruption 4 | . . . . 4 Average Corruption 4 | . . . . 4 Corruption Purged . | . . . . . Corruption Blocked . | . . . . . Effects 1 | . . . . 1 Message Errors 1 | . . . . 1 Overload Shots . | . . . . . Overflow Damage 58 | . 18 . 13 27 Projectiles 12 | . 12 . . . Explosions 19 | . 6 . 13 . Melee 27 | . . . . 27 Knockbacks 5 | . 4 . . 1 Impact 1 | . . . . 1 Kinetic 4 | . 4 . . . Secondary . | . . . . . Self-Inflicted Damage . | . . . . . Shots . | . . . . . Rammed . | . . . . . Targets Rammed . | . . . . . Kicked . | . . . . . Crushed . | . . . . . Highest Temperature 275 | 6 35 14 275 54 Average Temperature 51 | 6 11 10 73 9 Received Heat Transfer 1315 | 48 381 . 540 346 Siege Activations . | . . . . . Robots Corrupted . | . . . . . Combat Hostiles . | . . . . . Parts Fried 3 | . . . . 3 Impact Corruptions 3 | . . . . 3 Robots Melted . | . . . . . Combat Hostiles . | . . . . . Parts Melted 2 | . . . 2 . Heat Transferred 629 | . . . 629 . Parts Sabotaged . | . . . . . Parts Stolen . | . . . . . Parts Stripped . | . . . . . Power Chain Reactions . | . . . . . Alert | -11 -10 -10 -9 -9 ------- Run | Yrd Mat Min Mat Min Peak Influence 187 | . 174 70 187 120 Initial 60 | . . . 27 60 Average 76 | . 52 68 84 112 Maximum Alert Level . | . . . . . Low Security (%) 100 | 100 100 100 100 100 Level 1 . | . . . . . Level 2 . | . . . . . Level 3 . | . . . . . Level 4 . | . . . . . Level 5 . | . . . . . High Security . | . . . . . Max Security . | . . . . . Squads Dispatched 2 | . 1 . 1 . Investigation 2 | . 1 . 1 . Extermination . | . . . . . Reinforcement . | . . . . . Assault . | . . . . . Garrison . | . . . . . Intercept . | . . . . . Searches Triggered . | . . . . . Construction Impeded . | . . . . . Haulers Reinforced . | . . . . . Active Scanning Responses . | . . . . . Cargo Convoy Interrupts . | . . . . . Stealth | -11 -10 -10 -9 -9 --------- Run | Yrd Mat Min Mat Min Distress Signals 3 | . . . 3 . Communications Jammed . | . . . . . Distress Signals . | . . . . . Times Spotted 53 | 1 10 2 21 19 Peak Tracking Total 18 | 1 6 2 6 18 Tactical Retreats 2 | . 1 . 1 . Traps | -11 -10 -10 -9 -9 ------- Run | Yrd Mat Min Mat Min Traps Triggered 2 | . 1 . 1 . Indirectly . | . . . . . Trap Hack Attempts . | . . . . . Triggered . | . . . . . Disarmed . | . . . . . Reprogrammed . | . . . . . Reused . | . . . . . Traps Extracted . | . . . . . Installed . | . . . . . Triggered . | . . . . . Machines | -11 -10 -10 -9 -9 ---------- Run | Yrd Mat Min Mat Min Machines Disabled 2 | . 1 . 1 . Max in Single Turn 1 | . 1 . 1 . Machines Repaired . | . . . . . Machines Dismantled . | . . . . . Machines Sabotaged . | . . . . . Overloaded Fab Kills . | . . . . . Hacking | -11 -10 -10 -9 -9 --------- Run | Yrd Mat Min Mat Min Machines Accessed 4 | . 1 . 2 1 Terminals 3 | . 1 . 2 . Fabricators . | . . . . . Repair Stations . | . . . . . Recycling Units . | . . . . . Scanalyzers . | . . . . . Garrison Access . | . . . . . Total Hacks 8 | . 3 . 4 1 Successful 5 | . 2 . 2 1 Failed 3 | . 1 . 2 . Catastrophic . | . . . . . Database Lockouts . | . . . . . Manual . | . . . . . Terminals 7 | . 3 . 4 . Fabricators . | . . . . . Repair Stations . | . . . . . Recycling Units . | . . . . . Scanalyzers . | . . . . . Garrison Access . | . . . . . Terminal Hacks 5 | . 2 . 2 1 Record 1 | . 1 . . . Open Door 1 | . . . . 1 Alert Level 2 | . 1 . 1 . Unreport Threat 1 | . . . 1 . Fabricator Hacks . | . . . . . Repair Station Hacks . | . . . . . Recycling Unit Hacks . | . . . . . Scanalyzer . | . . . . . Garrison Access Hacks . | . . . . . Unauthorized Hacks . | . . . . . Terminals . | . . . . . Fabricators . | . . . . . Repair Stations . | . . . . . Recycling Units . | . . . . . Scanalyzers . | . . . . . Garrison Access . | . . . . . Data Cores Recovered . | . . . . . Used . | . . . . . Hacking Detections 2 | . . . 2 . Full Trace Events . | . . . . . Feedback Events . | . . . . . Feedback Blocked . | . . . . . Robot Schematics Acquired . | . . . . . Robots Built . | . . . . . Authchips . | . . . . . Time . | . . . . . Total Robot Build Rating . | . . . . . Part Schematics Acquired . | . . . . . Parts Built . | . . . . . Authchips . | . . . . . Time . | . . . . . Total Part Build Rating . | . . . . . Parts Repaired . | . . . . . Time . | . . . . . Parts Recycled . | . . . . . Recycled Matter . | . . . . . Retrieved Matter . | . . . . . Retrieved Components . | . . . . . Parts Scanalyzed . | . . . . . Part Schematics Acquired . | . . . . . Parts Damaged . | . . . . . Bothacking | -11 -10 -10 -9 -9 ------------ Run | Yrd Mat Min Mat Min Used RIF Installer . | . . . . . Robots Hacked 1 | . . . 1 . Non-combat . | . . . . . Combat 1 | . . . 1 . Robot Hacks Applied 2 | . . . 2 . parse_system 2 | . . . 2 . Relay Couplers Released . | . . . . . Fabnet Peak Effective % . | . . . . . Robots Rewired . | . . . . . Allies Hacked . | . . . . . Hacks Repelled . | . . . . . Allies | -11 -10 -10 -9 -9 -------- Run | Yrd Mat Min Mat Min Total Allies . | . . . . . Largest Group . | . . . . . Highest-Rated Group . | . . . . . Highest-Rated Ally . | . . . . . Total Orders . | . . . . . Ally Attacks . | . . . . . Total Damage . | . . . . . Kills . | . . . . . Allies Corrupted . | . . . . . Allies Melted . | . . . . . Intel | -11 -10 -10 -9 -9 ------- Run | Yrd Mat Min Mat Min Robot Analysis Total . | . . . . . Derelict Logs Recovered 1 | . . . . 1 Drone Launches . | . . . . . Drone Recoveries . | . . . . . Exploration | -11 -10 -10 -9 -9 ------------- Run | Yrd Mat Min Mat Min Turns Passed 2099 | 106 500 157 916 420 Spaces Moved 990 | 75 265 71 370 209 Core 20 | 20 . . . . Treads 136 | . . . 130 6 Legs 713 | 55 144 71 240 203 Wheels 121 | . 121 . . . Hover . | . . . . . Flight . | . . . . . Fastest Speed 50 | 50 95 190 160 120 Average Speed 171 | 101 142 190 194 188 Slowest Speed 330 | 120 190 190 330 240 Overloaded Moves . | . . . . . Propulsion Burnouts . | . . . . . Robots Hopped . | . . . . . Cave-ins Triggered . | . . . . . Exploration Rate (%) 30 | 5 41 29 34 41 Regions Visited 4 Branch Regions 2 Pre-discovered Areas . | . . . . . Known Exits Taken . | . . . . . Unknown Exits Taken 4 | 1 1 1 1 . Scrap Searched . | . . . . . Spaces Dug . | . . . . . Terrain Destroyed 49 | . 10 . 39 . Melee . | . . . . . Projectile . | . . . . . AOE 49 | . 10 . 39 . Terrain Rammed . | . . . . . Walls Destroyed . | . . . . . Machines Disabled . | . . . . . Actions | -11 -10 -10 -9 -9 --------- Run | Yrd Mat Min Mat Min Total 1240 | 97 337 86 496 224 Wait 16 | . 12 . 4 . Move 986 | 74 264 70 369 209 Hop . | . . . . . Pick Up 51 | 8 12 4 25 2 Fast Attach . | . . . . . Attach 19 | 5 5 . 8 1 Detach 1 | . . . 1 . Swap 33 | . 9 2 20 2 Drop 18 | . . 5 13 . Fire 110 | 10 35 5 54 6 Melee 6 | . . . 2 4 Ram . | . . . . . Kick . | . . . . . Crush . | . . . . . Escape Stasis . | . . . . . Rewire . | . . . . . Trap . | . . . . . Miscellaneous . | . . . . . Route ------- -11/Scrapyard -10/Materials (discovered 2 exits: *Mat / [*Min]) -10/Mines -9/Materials -9/Mines History --------- Turn | Location | Event 2 | -11/Scrapyard | Met Revision 17 74 | -11/Scrapyard | Discovered new exit (range 8) 107 | -11/Scrapyard | Entered Materials 203 | -10/Materials | Discovered new exit (range 15) 318 | -10/Materials | Build established: Mutant 360 | -10/Materials | Lost 3 parts (2p1w) 412 | -10/Materials | Core integrity fell below 50% 579 | -10/Materials | Discovered new exit (range 16) 607 | -10/Materials | Entered Mines 631 | -10/Mines | Met a Derelict bent on vengeance 754 | -10/Mines | Discovered new exit (range 5) 764 | -10/Mines | Entered Materials 764 | -9/Materials | Evolved 2 slots: Power x1, Weapon x1 1454 | -9/Materials | Core integrity fell below 50% 1559 | -9/Materials | Discovered new exit (range 12) 1680 | -9/Materials | Entered Mines 1755 | -9/Mines | Met a Derelict who couldn't figure out how to use a Trap Extractor 1820 | -9/Mines | Learned Materials garrison access intel 2054 | -9/Mines | Assembled infested the area 2080 | -9/Mines | Core integrity fell below 20% 2100 | -9/Mines | Destroyed by as-38843 with Assembled Rifle Last Messages --------------- K-01 Serf collects debris. T-07 Excavator is excavating. Want a larger map view with more modal windows? Or have a large enough display to fit a bigger map in exchange for smaller text? Consider selecting a different UI Layout in the option menu. 02054_ ALERT: Infestation in the mines, dispatching Demolisher response squad. 02082_ R-06 Scavenger destroyed. 02088_ Imp. Ion Engine destroyed. 02089_ Mni. Grenade Launcher destroyed. 02089_ System corrupted by crushing effect (+4). 02091_ Lgt. Ion Engine destroyed. 02091_ U-05 Engineer destroyed. 02099_ NT%DWT&9WGCIY/9AQH|OYAAEOQ0VQPYZT 02099_ Critical hit (Burn: +80). 02099_ Aluminum Leg destroyed. 02099_ Autogun destroyed. [Achievement: First Step to Greatness] Map ----- +----------------------------------------------------+ | ???????????????????????????????????????? | | ???????????????????????????????????????? | | #############??????????????????????????? | | # # #??????????????????????????? | | # ! #??????????????????????????? | | #"*! #??????????????????????????? | | #"! #???????????????###????????? | | #"!^ X #???????????##### ####?????? | | #"!### #??????????## ###???# | | ####?# #??????????# ##### | | ?????# #???######## ### | | ?????# #???# #?## ## | | ?????# #???# ########??# ### | | ?????##### ###### #?????????# #### | | ????????# #?????##### #### # | | ????????# #?????# ## #??# # | | ????????# #########???### ##### #### # | | ????????# #??????????## #???# # | | ??????### ############ #???######## | | ??????# ## ##??????????? | | ??????# """ #???????????? | | ??????# ###### """ #???????????? | | ??????#= % ### ###### """ ##??????????? | | ??????# [! #?# #??????????? | | ??????# #?# ###### #??????????? | | ??????#########@ ##??## #??????????? | | ?????????????# ##??## #??????????? | | ?????????????# a ##### #??????????? | | ?????????????## aa #??????????? | | ??????????????## aaa $u ##??????????? | | ??????????????##aaa #### #???????????? | | ?????????????## aa ##??### ????????? | | ????????????## ##?????? #####???????? | | ???????????## #??????? #???????????? | | ??????????## %a##??????? #???????????? | | ??????????# ##????????##???????????? | | ???###???## #??????????????????????? | | ??## #?## ##??????????????????????? | | ??# ##[= ####???????????????????????? | | ??# =%!##??????????????????????????? | | ??# *[##???????????????????????????? | | ??## =#????????????????????????????? | | ???## ####?????????????????????????? | | ????## #?????????????????????????? | | ?????# #?????????????????????????? | | ?????## ### #?????????????????????????? | | ??????# ##?? #?????????????????????????? | | ??????# #### #?????????????????????????? | | ??????# #?????????????????????????? | | ??????# #####?????????????????????????? | +----------------------------------------------------+ Best States ------------- Heat Dissipation 35 Energy Generation 19 Energy Capacity 310 Matter Stores 300 Matter Capacity 300 Sight Range 16 Terrain Scan Range 14 Terrain Scan Density 10 Armor Coverage 150 Utility Shielding 33 Evasion (%) 55 Recoil Reduction 2 Item Schematics ----------------- None Robot Schematics ------------------ None Fabricated ------------ Nothing Alien Tech Used ----------------- None Achievements -------------- Crack Shot Everything Is Under Control First Step to Greatness Challenges ------------ None Game ------ Seed TractorTrapBrace Manual? 0 Play Time 02:22:49 Cumulative 2.3 hours Start 2024.04.21 @ 16:30:33 End 2024.04.23 @ 03:41:28 Sessions 5 Manual Loads 0 Difficulty Rogue Special Mode None Game No. 1 Rogue 1 Adventurer 0 Explorer 0 Win Type - Total 0 Types 0/0/0/0/0/0/0/0/0 Lore% 0 Gallery% 2 Achievement% 1 Wizard Run 0 Options --------- Layout 0 ASCII 0 Keyboard 1 Movement Numpad Keybinds 0 Fullscreen 1 Font 18/Terminus Map View 76x50 Zoom Use 0% Tactical HUD 1 Map Filters NONE Filters NONE Steam 1 RUN: 757d94ab-9b8d-4f04-a652-d9ec3dd2aee8